fUST/lending_fUST_20250520
["ID","MTS","AMOUNT","RATE_DAILY","PERIOD"]
[361712145,1747716632791,-382.36782807,0.00015042,2]
[361712147,1747716632801,-298.6558789,0.00015046,2]
[361712149,1747716632810,-661.3486338,0.00015083,2]
[361712152,1747716632820,-557.59929886,0.0001525,2]
[361712155,1747716632836,-267.46027104,0.0001525,2]
[361712157,1747716632846,-300.0,0.00015434,2]
[361712159,1747716632856,-300.0,0.00015435,2]
[361712161,1747716632866,-1200.0,0.00015435,2]
[361712163,1747716632876,-300.0,0.00015435,2]
[361712165,1747716632886,-300.0,0.00015435,2]
[361712166,1747716632896,-2725.57416188,0.00015437,2]
[361712174,1747716638661,-300.0,0.00015434,2]
[361712175,1747716638673,-11822.70210198,0.00015437,2]
[361712177,1747716638687,-1004.99422154,0.00015437,2]
[361712179,1747716638699,-652.680384,0.00015957,2]
[361712181,1747716638709,-190.33978075,0.00016338,2]
[361712182,1747716638720,-54537.74663483,0.0001643,2]
[361712187,1747716638766,-4594.42490134,0.0001643,2]
[361712188,1747716638779,-12767.32325452,0.0001643,2]
[361712220,1747716643727,-313014.85908327,0.0001643,2]
[361712244,1747716646807,-25262.13147016,0.0001643,2]
[361712245,1747716646820,-9709.44996267,0.0001643,2]
[361712532,1747717843061,-269.822133,0.00013699,2]
[361712533,1747717843071,-155.057867,0.0001612,2]
[361712555,1747718379775,-174.0,0.00025377,120]
[361712556,1747718379801,-6702.69,0.00025377,60]
[361712557,1747718379826,-45945.0,0.00025377,30]
[361712558,1747718379850,-1936.51440175,0.00025377,120]
[361712559,1747718379875,-1007.43918372,0.00025377,30]
[361712560,1747718379900,-26619.91125678,0.00025377,120]
[361712561,1747718379925,-1102.0,0.00025377,120]
[361712562,1747718379950,-2989.0,0.00025377,120]
[361712563,1747718379975,-1869.1,0.00025377,30]
[361712564,1747718380000,-1416.09649595,0.00025377,120]
[361712565,1747718380029,-33925.59806681,0.00025377,60]
[361712566,1747718380057,-309.9885374,0.00025377,120]
[361712567,1747718380084,-7849.58,0.00025377,30]
[361712568,1747718394043,-167.0227601,0.00025,120]
[361712569,1747718394070,-445.34740303,0.00025,120]
[361712570,1747718394096,-1152.50800431,0.00025,120]
[361712571,1747718394122,-499.62934212,0.00025,120]
[361712572,1747718394154,-500.0,0.00025293,120]
[361712573,1747718394189,-3.26811653,0.000254,120]
[361712574,1747718394225,-212.38718278,0.00026,120]
[361712575,1747718394258,-246.21116,0.00027,120]
[361712576,1747718394287,-462.05739552,0.00027397,120]
[361712577,1747718481325,172.11995101,0.00025377,120]
[361712578,1747718491068,200.0,0.00024411,120]
[361712579,1747718491559,1336.33330466,0.00027397,120]
[361712580,1747718492829,486.395822,0.00027397,120]
[361713071,1747718516291,500.0,0.00024377,120]
[361713100,1747718517054,500.0,0.00024377,120]
[361713129,1747718517822,500.0,0.00024377,120]
[361713151,1747718518580,500.0,0.00024377,120]
[361713181,1747718519339,500.0,0.00024377,120]
[361713219,1747718520324,500.0,0.00024377,120]
[361713238,1747718520890,500.0,0.00024377,120]
[361713264,1747718521677,500.0,0.00024377,120]
[361713299,1747718522592,500.0,0.00024377,120]
[361713337,1747718523745,500.0,0.00024377,120]
[361713340,1747718523799,1237.69082,0.00027397,120]
[361713355,1747718524506,500.0,0.00024377,120]
[361713383,1747718525307,500.0,0.00024377,120]
[361713413,1747718526163,500.0,0.00024377,120]
[361713439,1747718526933,500.0,0.00024377,120]
[361713457,1747718527779,500.0,0.00024377,120]
[361713489,1747718528673,500.0,0.00024377,120]
[361713518,1747718529428,500.0,0.00024377,120]
[361713552,1747718530328,500.0,0.00024377,120]
[361713601,1747718531882,500.0,0.00024377,120]
[361713629,1747718532641,500.0,0.00024377,120]
[361713660,1747718533403,500.0,0.00024377,120]
[361713679,1747718534184,500.0,0.00024377,120]
[361713712,1747718535007,500.0,0.00024377,120]
[361713744,1747718535785,500.0,0.00024377,120]
[361713774,1747718536548,500.0,0.00024377,120]
[361713794,1747718537326,500.0,0.00024377,120]
[361713837,1747718538481,160.0,0.00025377,30]
[361713839,1747718538527,500.0,0.00024377,120]
[361713865,1747718539246,500.0,0.00024377,120]
[361713886,1747718540010,500.0,0.00024377,120]
[361713927,1747718541101,500.0,0.00024377,120]
[361713945,1747718541576,500.0,0.00024377,120]
[361713981,1747718542536,500.0,0.00024377,120]
[361713993,1747718543085,500.0,0.00024377,120]
[361714019,1747718543872,500.0,0.00024377,120]
[361714046,1747718544590,500.0,0.00024377,120]
[361714091,1747718545842,500.0,0.00024377,120]
[361714107,1747718546619,500.0,0.00024377,120]
[361714135,1747718547414,500.0,0.00024377,120]
[361714163,1747718548182,500.0,0.00024377,120]
[361714191,1747718548955,500.0,0.00024377,120]
[361714210,1747718549755,500.0,0.00024377,120]
[361714225,1747718550247,1000.0,0.00025377,30]
[361714233,1747718550535,500.0,0.00024377,120]
[361714237,1747718550623,1000.0,0.00025377,30]
[361714241,1747718550732,200.0,0.00027315,120]
[361714248,1747718550973,1000.0,0.00025377,30]
[361714259,1747718551319,500.0,0.00024377,120]
[361714261,1747718551355,1000.0,0.00025377,30]
[361714272,1747718551720,1000.0,0.00025377,30]
[361714283,1747718552082,500.0,0.00024377,120]
[361714290,1747718552283,1320.281539,0.00025377,30]
[361714307,1747718552913,500.0,0.00024377,120]
[361714325,1747718553611,500.0,0.00024377,120]
[361714342,1747718554387,500.0,0.00024377,120]
[361714364,1747718555208,500.0,0.00024377,120]
[361714410,1747718556895,500.0,0.00024377,120]
[361714431,1747718557617,500.0,0.00024377,120]
[361714447,1747718558383,500.0,0.00024377,120]
[361714470,1747718559188,500.0,0.00024377,120]
[361714494,1747718560043,500.0,0.00024377,120]
[361714516,1747718560810,417.47,0.00024377,120]
[361714751,1747718570973,2000.0,0.00025377,30]
[361714762,1747718571426,2000.0,0.00025377,30]
[361714778,1747718571980,2000.0,0.00025377,30]
[361714794,1747718572540,2000.0,0.00025377,30]
[361714816,1747718573451,2000.0,0.00025377,30]
[361714823,1747718573780,479.899999,0.00025377,30]
[361715644,1747718608616,156.56180132,0.00025377,120]
[361715700,1747718610725,200.0,0.00025132,120]
[361716061,1747718626480,500.0,0.00024377,120]
[361716063,1747718670782,200.0,0.0002632,120]
[361716065,1747718730788,200.0,0.00026228,120]
[361716068,1747718778822,4411.55611426,0.00024908,30]
[361716069,1747718780780,10000.0,0.00011,2]
[361716070,1747718790770,200.0,0.00026603,120]
[361716072,1747718850799,200.0,0.00024584,120]
[361716073,1747718855273,507.35960213,0.00024908,30]
[361716074,1747718867448,-2267.0,0.00013562,2]
[361716075,1747718867956,2166.32646918,0.00024908,120]
[361716076,1747718873332,20398.44592964,0.0002739,120]
[361716079,1747718903109,765.32206967,0.00024908,120]
[361716080,1747718907889,511.26232593,0.00024908,120]
[361716081,1747718909269,54622.30643311,0.00024908,30]
[361716082,1747718910473,503.99846487,0.00024908,31]
[361716083,1747718910558,1007.43918372,0.00024908,30]
[361716084,1747718914172,946.57108411,0.00024908,120]
[361716085,1747718914302,193.35946498,0.00025,120]
[361716086,1747718919054,204.42834446,0.0002,120]
[361716087,1747718919390,489.99069022,0.00025,120]
[361716088,1747718921211,1152.71202719,0.00025,120]
[361716089,1747718921674,499.71778908,0.00025,120]
[361716090,1747718921725,301.56411343,0.00024908,120]
[361716091,1747718921847,1261.75570907,0.00027397,120]
[361716092,1747718922769,1160.97154101,0.0002639,120]
[361716093,1747718922800,1410.41957855,0.00025,120]
[361716094,1747718970772,200.0,0.00025792,120]
[361716097,1747719030723,200.0,0.00024804,120]
[361716147,1747719032059,-3458.40455903,0.00013426,2]
[361716148,1747719032069,-256.331026,0.00013699,2]
[361716150,1747719032078,-193.865909,0.00014604,2]
[361716152,1747719032088,-350.06,0.00015,2]
[361716153,1747719032097,-1200.0,0.0001504,2]
[361716155,1747719032106,-300.0,0.00015041,2]
[361716157,1747719032115,-13600.1064045,0.00015042,2]
[361716165,1747719035568,200.0,0.00027,120]
[361716173,1747719038050,-300.0,0.00015041,2]
[361716174,1747719038060,-1168.5574486,0.00015042,2]
[361716175,1747719038070,-263.06296994,0.00015792,2]
[361716176,1747719038080,-207.4,0.00015792,2]
[361716177,1747719038090,-657.29251755,0.0001596,2]
[361716178,1747719038100,-2317.44557977,0.00016129,2]
[361716185,1747719040213,-2682.55442023,0.00016129,2]
[361716186,1747719040223,-347.725376,0.00016384,2]
[361716187,1747719040233,-500.0,0.00016399,2]
[361716188,1747719040242,-186.87400823,0.000164,2]
[361716195,1747719070029,206.68,0.00025792,120]
[361716196,1747719090765,200.0,0.00024312,120]
[361716197,1747719103158,1000.0,0.00024912,30]
[361716198,1747719107671,1000.0,0.00024912,30]
[361716199,1747719108632,1000.0,0.00024912,30]
[361716200,1747719146118,200.0,0.00024,120]
[361716201,1747719147175,500.0,0.00024377,120]
[361716202,1747719148082,500.0,0.00024377,120]
[361716203,1747719149032,500.0,0.00024377,120]
[361716204,1747719149839,500.0,0.00024377,120]
[361716205,1747719150687,500.0,0.00024377,120]
[361716206,1747719150763,200.0,0.00024629,120]
[361716207,1747719151566,500.0,0.00024377,120]
[361716208,1747719153473,500.0,0.00024377,120]
[361716210,1747719154264,500.0,0.00024377,120]
[361716211,1747719155062,645.97,0.00024377,120]
[361716212,1747719165783,2000.0,0.00024912,30]
[361716213,1747719166140,2000.0,0.00024912,30]
[361716214,1747719166535,539.1,0.00024912,30]
[361716215,1747719188913,-379.186882,0.00015,2]
[361716218,1747719202711,418.73113114,0.00024912,30]
[361716219,1747719210790,200.0,0.00026399,120]
[361716220,1747719220610,500.0,0.00024377,120]
[361716221,1747719222339,1000.0,0.00027,120]
[361716222,1747719224879,1000.0,0.00027,120]
[361716223,1747719258393,-407.41082057,0.0001485,2]
[361716224,1747719263051,-213.40229743,0.0001485,2]
[361716225,1747719270716,200.0,0.00024076,120]
[361716226,1747719296089,1000.0,0.00027,120]
[361716227,1747719308781,1000.0,0.0002491,30]
[361716228,1747719320961,168.61002784,0.0002491,120]
[361716229,1747719330739,200.0,0.00024853,120]
[361716230,1747719404660,500.0,0.0002491,30]
[361716231,1747719404959,500.0,0.0002491,30]
[361716232,1747719405222,450.67260035,0.0002491,30]
[361716240,1747719501693,40925.66,0.00024,120]
[361716243,1747719642640,630.498852,0.00027397,120]
[361716245,1747719696934,3921.9,0.00027397,120]
[361716246,1747719751348,1000.0,0.00024926,30]
[361716247,1747719751648,1000.0,0.00024926,30]
[361716248,1747719752266,1000.0,0.00024926,30]
[361716249,1747719752556,1000.0,0.00024926,30]
[361716250,1747719752843,1000.0,0.00024926,30]
[361716251,1747719753435,1320.281539,0.00024926,30]
[361716252,1747719770338,300.0,0.00027397,120]
[361716253,1747719779355,300.0,0.00027397,120]
[361716259,1747719793858,300.0,0.00027397,120]
[361716260,1747719801555,300.0,0.00027397,120]
[361716261,1747719813873,500.0,0.00027397,120]
[361716269,1747720011449,-260.31795641,0.00013562,2]
[361716270,1747720014225,-239.68204359,0.00013562,2]
[361716271,1747720051795,3303.32398963,0.00027,120]
[361716279,1747720155040,6000.0,0.00011,2]
[361716282,1747720198783,-158.43658051,0.00013426,2]
[361716283,1747720200398,-258.82831425,0.00013426,2]
[361716328,1747720232557,-4582.73510524,0.00013426,2]
[361716330,1747720232570,-253.001691,0.00013699,2]
[361716332,1747720232580,-404.2759133,0.00014383,2]
[361716334,1747720232589,-250.0,0.00014383,2]
[361716336,1747720232599,-196.337772,0.00014763,2]
[361716338,1747720232609,-193.0,0.000148,2]
[361716340,1747720232619,-193.0,0.000148,2]
[361716342,1747720232628,-1200.0,0.00014998,2]
[361716344,1747720232638,-670.813118,0.00015,2]
[361716346,1747720232647,-300.0,0.00015336,2]
[361716348,1747720232658,-300.0,0.00015336,2]
[361716350,1747720232667,-300.0,0.00015336,2]
[361716352,1747720232677,-248.0,0.00015336,2]
[361716354,1747720232687,-24900.0,0.00015339,2]
[361716356,1747720232697,-207.4,0.00015792,2]
[361716358,1747720232707,-192.0,0.000159,3]
[361716360,1747720232717,-3233.32137613,0.000159,2]
[361716362,1747720232728,-633.25778068,0.00015903,2]
[361716364,1747720232737,-3233.32137606,0.0001621,2]
[361716367,1747720232747,-521.43323751,0.0001633,2]
[361716369,1747720232757,-552.44885677,0.000164,2]
[361716370,1747720232767,-783.12549594,0.00016421,2]
[361716372,1747720232777,-500.0,0.00016428,2]
[361716374,1747720232787,-500.0,0.00016428,2]
[361716376,1747720232796,-500.0,0.00016428,2]
[361716378,1747720232807,-500.0,0.00016428,2]
[361716380,1747720232820,-500.0,0.00016428,2]
[361716382,1747720232831,-500.0,0.00016428,2]
[361716384,1747720232840,-344.11771937,0.00016428,2]
[361716387,1747720232851,-500.0,0.00016428,2]
[361716388,1747720232860,-500.0,0.00016428,2]
[361716390,1747720232870,-500.0,0.00016428,2]
[361716392,1747720232880,-229.56490249,0.00016428,2]
[361716395,1747720232902,-500.0,0.00016428,2]
[361716398,1747720232915,-500.0,0.00016428,2]
[361716400,1747720232926,-500.0,0.00016428,2]
[361716402,1747720232939,-500.0,0.00016428,2]
[361716404,1747720232950,-500.0,0.00016428,2]
[361716406,1747720232960,-500.0,0.00016428,2]
[361716408,1747720232970,-500.0,0.00016428,2]
[361716410,1747720232981,-500.0,0.00016428,2]
[361716412,1747720232991,-500.0,0.00016428,2]
[361716414,1747720233002,-500.0,0.00016428,2]
[361716416,1747720233012,-500.0,0.00016428,2]
[361716418,1747720233022,-500.0,0.00016428,2]
[361716420,1747720233033,-500.0,0.00016428,2]
[361716422,1747720233044,-500.0,0.00016428,2]
[361716424,1747720233055,-500.0,0.00016428,2]
[361716426,1747720233068,-527.49402024,0.00016428,2]
[361716428,1747720233078,-500.0,0.00016428,2]
[361716430,1747720233089,-500.0,0.00016428,2]
[361716432,1747720233099,-525.51730272,0.00016428,2]
[361716434,1747720233109,-500.0,0.00016428,2]
[361716436,1747720233120,-500.0,0.00016428,2]
[361716438,1747720233131,-500.0,0.00016428,2]
[361716440,1747720233142,-500.0,0.00016428,2]
[361716442,1747720233155,-500.0,0.00016428,2]
[361716444,1747720233166,-500.0,0.00016428,2]
[361716446,1747720233178,-500.0,0.00016428,2]
[361716448,1747720233189,-500.0,0.00016428,2]
[361716451,1747720233200,-500.0,0.00016428,2]
[361716453,1747720233212,-650.0,0.00016428,2]
[361716455,1747720233223,-500.0,0.00016428,2]
[361716457,1747720233233,-500.0,0.00016428,2]
[361716459,1747720233244,-500.0,0.00016428,2]
[361716461,1747720233254,-353.85052262,0.00016429,3]
[361716463,1747720233265,-37829.91226181,0.00016429,2]
[361716465,1747720233274,-90039.57154812,0.0001643,2]
[361716545,1747720240513,-0.01057071,0.00015335,2]
[361716546,1747720243241,-5000.0,0.00015182,2]
[361716547,1747720243251,-299.98942929,0.00015335,2]
[361716548,1747720243263,-500.0,0.00016428,2]
[361716549,1747720243273,-500.0,0.00016428,2]
[361716550,1747720243283,-500.0,0.00016428,2]
[361716551,1747720243293,-500.0,0.00016428,2]
[361716552,1747720243303,-500.0,0.00016428,2]
[361716553,1747720243314,-499.86149385,0.00016428,2]
[361716554,1747720243327,-500.0,0.00016428,2]
[361716555,1747720243337,-500.0,0.00016428,2]
[361716556,1747720243347,-500.0,0.00016428,2]
[361716557,1747720243358,-500.0,0.00016428,2]
[361716558,1747720243367,-500.0,0.00016428,2]
[361716560,1747720243378,-500.0,0.00016428,2]
[361716561,1747720243387,-500.0,0.00016428,2]
[361716562,1747720243396,-500.0,0.00016428,2]
[361716563,1747720243407,-500.0,0.00016428,2]
[361716564,1747720243417,-500.0,0.00016428,2]
[361716565,1747720243427,-500.0,0.00016428,2]
[361716566,1747720243436,-500.0,0.00016428,2]
[361716567,1747720243446,-500.0,0.00016428,2]
[361716568,1747720243455,-500.0,0.00016428,2]
[361716569,1747720243465,-500.0,0.00016428,2]
[361716570,1747720243474,-500.0,0.00016428,2]
[361716571,1747720243484,-500.0,0.00016428,2]
[361716572,1747720243493,-500.0,0.00016428,2]
[361716573,1747720243503,-500.0,0.00016428,2]
[361716574,1747720243513,-500.0,0.00016428,2]
[361716575,1747720243522,-400.0,0.00016428,2]
[361716576,1747720243531,-187.15275594,0.00016428,2]
[361716577,1747720243542,-500.0,0.00016428,2]
[361716578,1747720243551,-500.0,0.00016428,2]
[361716579,1747720243561,-500.0,0.00016428,2]
[361716580,1747720243572,-500.0,0.00016428,2]
[361716581,1747720243582,-500.0,0.00016428,2]
[361716582,1747720243591,-500.0,0.00016428,2]
[361716583,1747720243601,-500.0,0.00016428,2]
[361716584,1747720243610,-157288.99632092,0.0001643,2]
[361716601,1747720246233,-8287.17131927,0.0001643,2]
[361716602,1747720246246,-5052.00261825,0.0001643,2]
[361716603,1747720246257,-34377.75048256,0.0001643,2]
[361716604,1747720259538,200.0,0.0002739,120]
[361716605,1747720657489,472.874139,0.00027397,120]
[361716608,1747720861749,380.0,0.00027397,120]
[361716612,1747720927917,183.87191459,0.00027397,120]
[361716613,1747720950024,1000.0,0.00024933,30]
[361716614,1747720950198,185.0,0.00027397,120]
[361716615,1747720950475,1000.0,0.00024933,30]
[361716616,1747720951001,1159.30914,0.00024933,30]
[361716617,1747720973998,-261.929531,0.00013699,2]
[361716618,1747720974024,-2.2190269,0.000138,2]
[361716619,1747720979175,-154.34277442,0.000138,2]
[361716620,1747720979201,-5.65722558,0.00014084,2]
[361716621,1747720981903,-158.58654734,0.00014084,2]
[361716622,1747721225261,500.0,0.00027397,120]
[361716624,1747721241625,500.0,0.00027397,120]
[361716625,1747721263059,500.0,0.00027397,120]
[361716628,1747721306128,877.85,0.00027397,120]
[361716632,1747721341563,834.89,0.00024935,30]
[361716635,1747721351612,500.02,0.00027397,120]
[361716638,1747721389904,500.0,0.00027397,120]
[361716683,1747721432409,-1338.80771785,0.00014137,2]
[361716684,1747721432418,-300.0,0.00014424,2]
[361716686,1747721432429,-300.0,0.00014424,2]
[361716688,1747721432439,-300.0,0.00014424,2]
[361716690,1747721432448,-1200.0,0.00014424,2]
[361716691,1747721432458,-18296.6285132,0.00014425,2]
[361716692,1747721432467,-10146.18046139,0.00014667,5]
[361716694,1747721432477,-295.2905469,0.00015118,2]
[361716695,1747721432487,-223.09276066,0.00015243,2]
[361716697,1747721432499,-2723.3991735,0.00015243,2]
[361716698,1747721432511,-1996.875,0.00015243,2]
[361716700,1747721432524,-1029.68057,0.00015243,2]
[361716704,1747721432577,-18926.95249584,0.00015243,2]
[361716705,1747721432586,-10000.0,0.00015432,2]
[361716707,1747721432596,-194.4374271,0.0001545,2]
[361716709,1747721432606,-207.4,0.00015591,2]
[361716710,1747721432616,-153.0,0.00015616,2]
[361716712,1747721432625,-153.0,0.00015616,2]
[361716713,1747721432636,-153.0,0.00015616,2]
[361716715,1747721432646,-153.0,0.00015616,2]
[361716717,1747721432656,-153.0,0.00015616,2]
[361716718,1747721432667,-153.0,0.00015616,2]
[361716720,1747721432678,-153.0,0.00015616,2]
[361716722,1747721432688,-175.798278,0.00015616,2]
[361716723,1747721432697,-153.0,0.00015649,2]
[361716725,1747721432706,-3234.45827552,0.000157,2]
[361716726,1747721432716,-3234.45827536,0.000157,2]
[361716728,1747721432726,-3234.45827536,0.000157,2]
[361716730,1747721432735,-420.0,0.00015796,2]
[361716731,1747721432745,-1324.0,0.00015867,2]
[361716733,1747721432754,-3234.45827536,0.00015934,2]
[361716735,1747721432764,-153.0,0.00015945,2]
[361716736,1747721432774,-153.0,0.00015945,2]
[361716738,1747721432783,-153.0,0.00015945,2]
[361716740,1747721432794,-307.201074,0.00015945,2]
[361716741,1747721432803,-153.0,0.00015945,2]
[361716743,1747721432814,-500.0,0.00016006,2]
[361716745,1747721432823,-500.0,0.00016006,2]
[361716746,1747721432833,-500.0,0.00016006,2]
[361716748,1747721432842,-225.05747808,0.00016006,2]
[361716749,1747721432851,-500.0,0.00016006,2]
[361716751,1747721432861,-500.0,0.00016006,2]
[361716752,1747721432871,-500.0,0.00016006,2]
[361716754,1747721432880,-500.0,0.00016006,2]
[361716755,1747721432890,-500.0,0.00016006,2]
[361716757,1747721432900,-500.0,0.00016006,2]
[361716758,1747721432909,-369.13930209,0.00016006,2]
[361716760,1747721432919,-475.41516483,0.00016006,2]
[361716761,1747721432929,-500.0,0.00016006,2]
[361716763,1747721432938,-332.21291739,0.00016006,2]
[361716764,1747721432947,-500.0,0.00016006,2]
[361716766,1747721432957,-500.0,0.00016006,2]
[361716768,1747721432966,-500.0,0.00016006,2]
[361716769,1747721432976,-500.0,0.00016006,2]
[361716771,1747721432985,-500.0,0.00016006,2]
[361716772,1747721432994,-500.0,0.00016006,2]
[361716774,1747721433003,-500.0,0.00016006,2]
[361716775,1747721433013,-500.0,0.00016006,2]
[361716777,1747721433022,-500.0,0.00016006,2]
[361716779,1747721433032,-500.0,0.00016006,2]
[361716780,1747721433041,-500.0,0.00016006,2]
[361716782,1747721433051,-500.0,0.00016006,2]
[361716783,1747721433061,-500.0,0.00016006,2]
[361716785,1747721433070,-500.0,0.00016006,2]
[361716787,1747721433081,-500.0,0.00016006,2]
[361716788,1747721433090,-500.0,0.00016006,2]
[361716790,1747721433100,-500.0,0.00016006,2]
[361716791,1747721433109,-500.0,0.00016006,2]
[361716793,1747721433119,-500.0,0.00016006,2]
[361716795,1747721433129,-500.0,0.00016006,2]
[361716796,1747721433139,-500.0,0.00016006,2]
[361716798,1747721433149,-500.0,0.00016006,2]
[361716800,1747721433159,-500.0,0.00016006,2]
[361716801,1747721433168,-500.0,0.00016006,2]
[361716803,1747721433178,-500.0,0.00016006,2]
[361716804,1747721433187,-365.56754743,0.00016006,2]
[361716806,1747721433197,-500.0,0.00016006,2]
[361716808,1747721433206,-500.0,0.00016006,2]
[361716809,1747721433221,-500.0,0.00016006,2]
[361716811,1747721433231,-386.23812782,0.00016006,2]
[361716813,1747721433240,-500.0,0.00016006,2]
[361716814,1747721433251,-500.0,0.00016006,2]
[361716816,1747721433260,-640.0240067,0.00016006,2]
[361716817,1747721433271,-500.0,0.00016006,2]
[361716819,1747721433280,-500.0,0.00016006,2]
[361716820,1747721433291,-500.0,0.00016006,2]
[361716822,1747721433302,-500.0,0.00016006,2]
[361716823,1747721433313,-500.0,0.00016006,2]
[361716825,1747721433323,-1971.79597548,0.00016007,2]
[361716826,1747721433332,-627.83,0.00016098,3]
[361716827,1747721433342,-500.0,0.00016108,2]
[361716828,1747721433351,-151.0,0.00016108,2]
[361716829,1747721433361,-151.0,0.00016108,2]
[361716830,1747721433371,-2963.1577919,0.00016109,2]
[361716831,1747721433381,-1971.79597544,0.00016158,2]
[361716832,1747721433390,-151.0,0.00016279,2]
[361716833,1747721433400,-151.0,0.00016279,2]
[361716834,1747721433410,-3234.45827536,0.00016279,2]
[361716835,1747721433420,-1971.79597544,0.0001631,2]
[361716836,1747721433430,-500.0,0.00016382,2]
[361716837,1747721433440,-329.5065301,0.00016411,2]
[361716838,1747721433450,-154.2915306,0.00016411,2]
[361716839,1747721433460,-151.0,0.00016429,2]
[361716840,1747721433470,-151.0,0.00016429,2]
[361716841,1747721433480,-151.0,0.00016429,2]
[361716842,1747721433490,-151.0,0.00016429,2]
[361716843,1747721433500,-440.03708864,0.0001643,2]
[361716860,1747721438315,-300.0,0.00014424,2]
[361716861,1747721438509,-300.0,0.00015796,2]
[361716862,1747721438519,-500.0,0.00016006,2]
[361716863,1747721438529,-500.0,0.00016006,2]
[361716864,1747721438539,-500.0,0.00016006,2]
[361716865,1747721438548,-500.0,0.00016006,2]
[361716866,1747721438558,-500.0,0.00016006,2]
[361716867,1747721438567,-500.0,0.00016006,2]
[361716868,1747721438577,-500.0,0.00016006,2]
[361716869,1747721438586,-500.0,0.00016006,2]
[361716870,1747721438595,-500.0,0.00016006,2]
[361716871,1747721438605,-500.0,0.00016006,2]
[361716872,1747721438614,-425.46313464,0.00016006,2]
[361716873,1747721438623,-500.0,0.00016006,2]
[361716874,1747721438633,-500.0,0.00016006,2]
[361716875,1747721438643,-500.0,0.00016006,2]
[361716876,1747721438653,-500.0,0.00016006,2]
[361716877,1747721438663,-500.0,0.00016006,2]
[361716878,1747721438672,-500.0,0.00016006,2]
[361716879,1747721438682,-214.06413434,0.00016006,2]
[361716908,1747721441136,-285.93586566,0.00016006,2]
[361716910,1747721441146,-500.0,0.00016006,2]
[361716912,1747721441155,-500.0,0.00016006,2]
[361716914,1747721441165,-500.0,0.00016006,2]
[361716916,1747721441175,-500.0,0.00016006,2]
[361716919,1747721441185,-500.0,0.00016006,2]
[361716921,1747721441195,-500.0,0.00016006,2]
[361716922,1747721441204,-500.0,0.00016006,2]
[361716925,1747721441214,-500.0,0.00016006,2]
[361716926,1747721441229,-6806.02551946,0.0001643,2]
[361717126,1747721443544,-151.0,0.00016108,2]
[361717127,1747721443556,-797.2,0.0001643,2]
[361717230,1747721446461,-92773.50607489,0.0001643,2]
[361717231,1747721446471,-151.0,0.0001643,2]
[361717232,1747721446483,-151.0,0.0001643,2]
[361717233,1747721446493,-151.0,0.0001643,2]
[361717234,1747721446503,-151.0,0.0001643,2]
[361717235,1747721446514,-151.0,0.0001643,2]
[361717236,1747721446525,-151.0,0.0001643,2]
[361717237,1747721446535,-160.0,0.0001643,2]
[361717238,1747721446546,-400.0,0.00016433,2]